Cogmind - Beta 10.2 --- EXPLORER MODE // 2020.12.28 @ 15:28:51 Player: Xax Result: Destroyed by D-53 Grenadier with Mini Grenade Launcher Performance ------------- Evolutions (0) 0 Regions Visited (2) 400 Robots Destroyed (4) 20 Value Destroyed (131) 131 Prototype IDs (2) 40 Alien Tech Used (0) 0 Bonus (0) 0 TOTAL SCORE: 591 Bonus ------- None Cogmind --------- Core Integrity 0/250 Matter 290/300 Energy 98/100 System Corruption 0% Temperature Cool (0) Movement Core (200) Ox3 Location -10/Mines Parts ------- > --- POWER (1) -------- (None) > --- PROPULSION (2) --- (None) > --- UTILITY (3) ------ Medium Storage Unit Core Shielding Power Shielding > --- WEAPON (2) ------- (None) > --- INVENTORY (8) ---- Ion Engine Improved Heat Sink Medium Storage Unit Large Battery (300) Small Matter Pod (50) Targeting Computer Targeting Computer Peak State ------------ > --- POWER ------------ Light Ion Engine > --- PROPULSION ------- Light Treads Light Treads > --- UTILITY ---------- Medium Storage Unit Power Shielding > --- WEAPON ----------- Bore Cannon > --- INVENTORY -------- Ion Engine Improved Heat Sink Medium Storage Unit Large Battery Small Matter Pod Targeting Computer Targeting Computer Core Shielding [Rating: 11] Favorites ----------- Power Light Ion Engine Engine Light Ion Engine Propulsion Light Treads Treads Light Treads Utility Power Shielding Storage Medium Storage Unit Protection Power Shielding Weapon Light Assault Rifle Energy Gun Medium Laser Ballistic Gun Light Assault Rifle Ballistic Cannon Bore Cannon Build | -11 -10 -10 ------- Run | Scr Mat Min Slots Evolved 1 | . 1 . Power . | . . . Propulsion . | . . . Utility 1 | . 1 . Weapon . | . . . Parts Attached 17 | 5 9 3 Power 2 | . 2 . Engine 2 | . 2 . Core . | . . . Reactor . | . . . Propulsion 3 | 2 . 1 Treads 3 | 2 . 1 Leg . | . . . Wheel . | . . . Hover . | . . . Flight . | . . . Utility 5 | 2 2 1 Device . | . . . Storage 1 | 1 . . Processor . | . . . Hackware . | . . . Protection 4 | 1 2 1 Artifact . | . . . Weapon 7 | 1 5 1 Energy Gun 4 | 1 3 . Energy Cannon . | . . . Ballistic Gun 2 | . 2 . Ballistic Cannon 1 | . . 1 Launcher . | . . . Special Weapon . | . . . Impact Weapon . | . . . Slashing Weapon . | . . . Piercing Weapon . | . . . Special Melee Weapon . | . . . Unidentified Prototypes . | . . . Parts Lost 9 | . 2 7 Power 1 | . . 1 Propulsion 2 | . . 2 Utility 1 | . . 1 Weapon 5 | . 2 3 Highest Loss Streak 7 | . 1 7 Average Slot Usage (%) 96 | . 99 80 Engine 11 | . 12 10 Treads 24 | . 25 23 Storage 12 | . 12 12 Protection 23 | . 24 17 Energy Gun 10 | . 11 5 Ballistic Gun 11 | . 12 6 Naked Turns . | . . . Heaviest Build 21 | 11 20 21 Greatest Support 40 | 3 40 40 Greatest Overweight (x) 3 | 3 . 3 Average Overweight (x) . | 1 . . Largest Inventory Capacity 8 | 8 8 8 Average Capacity 7 | 6 8 8 Most Carried 8 | 7 8 8 Average Carried 7 | 5 7 7 Final Capacity 8 | 8 8 8 Final Carried 8 | 7 8 7 Class Distribution -------------------- 100% | Hacker-Mutant Dominant Class ---------------- Hacker-Mutant | -10/Materials Hacker-Mutant | -10/Mines Resources | -11 -10 -10 ----------- Run | Scr Mat Min Matter Collected 418 | 243 145 30 Remotely . | . . . Salvage Created 150 | . 150 . Parts 9 | . 9 . Haulers Intercepted . | . . . Recyclers Shooed . | . . . Parts Field Recycled . | . . . Retrieved Matter . | . . . Parts Self-Destructed . | . . . Prevented . | . . . Kills | -11 -10 -10 ------- Run | Scr Mat Min Combat Hostiles Destroyed 3 | . 3 . Guns 3 | . 3 . Classes Destroyed 2 | . 2 . Watcher 1 | . 1 . Grunt 3 | . 3 . Best Kill Streak 2 | . 2 . Combat Bots Only 2 | . 2 . Max Kills in Single Turn 1 | . 1 . Gunslinging . | . . . Exploded . | . . . Melee . | . . . Uniques/NPCs Destroyed . | . . . Combat | -11 -10 -10 -------- Run | Scr Mat Min Damage Taken 1032 | . 374 658 Core 250 | . 40 210 Absorbed by Shields . | . . . Core Remaining (%) 100 | 100 . . Volleys Fired 34 | . 34 . Largest 2 | . 2 . Hottest 70 | . 70 . Shots Fired 58 | . 58 . Gun 58 | . 58 . Cannon . | . . . Launcher . | . . . Special . | . . . Kinetic 34 | . 34 . Thermal 14 | . 14 . Explosive . | . . . Electromagnetic 10 | . 10 . Robot Hit Streak 25 | . 25 . Robot Miss Streak 2 | . 2 . Penetration Max . | . . . Secondary Targets . | . . . Shots Hit Robots 51 | . 51 . Core Hits 13 | . 13 . Critical Hits 1 | . 1 . Critical Kills . | . . . Critical Parts Destroyed 1 | . 1 . Melee Attacks . | . . . Impact . | . . . Slashing . | . . . Piercing . | . . . Sneak Attacks . | . . . Combat Hostiles . | . . . Follow-up Attacks . | . . . Damage Inflicted 483 | . 483 . Guns 483 | . 483 . Cannons . | . . . Explosions . | . . . Melee . | . . . Ramming . | . . . Kinetic 223 | . 223 . Thermal 137 | . 137 . Explosive . | . . . Electromagnetic 123 | . 123 . Impact . | . . . Slashing . | . . . Piercing . | . . . Highest Corruption . | . . . Average Corruption . | . . . Corruption Purged . | . . . Overload Shots . | . . . Overflow Damage . | . . . Projectiles . | . . . Explosions . | . . . Melee . | . . . Knockbacks . | . . . Impact . | . . . Kinetic . | . . . Secondary . | . . . Self-Inflicted Damage . | . . . Shots . | . . . Rammed . | . . . Targets Rammed . | . . . Kicked . | . . . Crushed . | . . . Highest Temperature 165 | . 165 . Average Temperature 65 | . 65 . Received Heat Transfer 374 | . 354 20 Siege Activations . | . . . Robots Corrupted . | . . . Combat Hostiles . | . . . Parts Fried . | . . . Impact Corruptions . | . . . Robots Melted . | . . . Combat Hostiles . | . . . Parts Melted . | . . . Heat Transferred 407 | . 407 . Parts Sabotaged . | . . . Parts Stolen . | . . . Parts Stripped . | . . . Power Chain Reactions . | . . . Missiles Intercepted . | . . . Alert | -11 -10 -10 ------- Run | Scr Mat Min Peak Influence 137 | . 137 20 Initial 8 | . . 8 Average 36 | . 45 10 Maximum Alert Level . | . . . Low Security (%) 100 | 100 100 100 Level 1 . | . . . Level 2 . | . . . Level 3 . | . . . Level 4 . | . . . Level 5 . | . . . High Security . | . . . Max Security . | . . . Squads Dispatched . | . . . Investigation . | . . . Extermination . | . . . Reinforcement . | . . . Assault . | . . . Garrison . | . . . Intercept . | . . . Construction Impeded . | . . . Haulers Reinforced . | . . . Stealth | -11 -10 -10 --------- Run | Scr Mat Min Distress Signals 1 | . 1 . Communications Jammed . | . . . Distress Signals . | . . . Times Spotted 22 | . 11 11 Peak Tracking Total 6 | . 3 6 Tactical Retreats 3 | . 3 . Traps | -11 -10 -10 ------- Run | Scr Mat Min Traps Triggered 1 | . 1 . Indirectly . | . . . Trap Hack Attempts . | . . . Triggered . | . . . Disarmed . | . . . Reprogrammed . | . . . Reused . | . . . Traps Extracted . | . . . Installed . | . . . Triggered . | . . . Machines | -11 -10 -10 ---------- Run | Scr Mat Min Machines Disabled . | . . . Max in Single Turn . | . . . Machines Sabotaged . | . . . Garrisons Compromised . | . . . Overloaded Fab Kills . | . . . Fab Network Shutdowns . | . . . Hacking | -11 -10 -10 --------- Run | Scr Mat Min Machines Accessed 2 | . 2 . Terminals 1 | . 1 . Fabricators . | . . . Repair Stations . | . . . Recycling Units 1 | . 1 . Scanalyzers . | . . . Garrison Access . | . . . Total Hacks 3 | . 3 . Successful 3 | . 3 . Failed . | . . . Catastrophic . | . . . Database Lockouts . | . . . Manual . | . . . Terminals 2 | . 2 . Fabricators . | . . . Repair Stations . | . . . Recycling Units 1 | . 1 . Scanalyzers . | . . . Garrison Access . | . . . Terminal Hacks 2 | . 2 . Prototype ID Bank 1 | . 1 . Branch Access Points 1 | . 1 . Fabricator Hacks . | . . . Repair Station Hacks . | . . . Recycling Unit Hacks 1 | . 1 . Retrieve Components 1 | . 1 . Scanalyzer . | . . . Garrison Access Hacks . | . . . Unauthorized Hacks . | . . . Terminals . | . . . Fabricators . | . . . Repair Stations . | . . . Recycling Units . | . . . Scanalyzers . | . . . Garrison Access . | . . . Data Cores Recovered . | . . . Used . | . . . Hacking Detections . | . . . Full Trace Events . | . . . Feedback Events . | . . . Feedback Blocked . | . . . Robot Schematics Acquired . | . . . Robots Built . | . . . Matter . | . . . Time . | . . . Total Robot Build Rating . | . . . Part Schematics Acquired . | . . . Parts Built . | . . . Matter . | . . . Time . | . . . Total Part Build Rating . | . . . Parts Repaired . | . . . Time . | . . . Parts Recycled . | . . . Recycled Matter . | . . . Retrieved Matter . | . . . Retrieved Components 2 | . 2 . Parts Scanalyzed . | . . . Part Schematics Acquired . | . . . Parts Damaged . | . . . Bothacking | -11 -10 -10 ------------ Run | Scr Mat Min Used RIF Installer . | . . . Robots Hacked . | . . . Non-combat . | . . . Combat . | . . . Robot Hacks Applied . | . . . Relay Couplers Released . | . . . Robots Rewired . | . . . Allies Hacked . | . . . Hacks Repelled . | . . . Allies | -11 -10 -10 -------- Run | Scr Mat Min Total Allies . | . . . Largest Group . | . . . Highest-Rated Group . | . . . Highest-Rated Ally . | . . . Total Orders . | . . . Ally Attacks . | . . . Total Damage . | . . . Kills . | . . . Allies Corrupted . | . . . Allies Melted . | . . . Intel | -11 -10 -10 ------- Run | Scr Mat Min Robot Analysis Total . | . . . Derelict Logs Recovered . | . . . Drone Launches . | . . . Drone Recoveries . | . . . Exploration | -11 -10 -10 ------------- Run | Scr Mat Min Turns Passed 616 | 72 471 73 Spaces Moved 303 | 40 221 42 Core 43 | 40 . 3 Treads 260 | . 221 39 Legs . | . . . Wheels . | . . . Hover . | . . . Flight . | . . . Fastest Speed 50 | 50 160 150 Average Speed 158 | 143 160 161 Slowest Speed 200 | 200 160 200 Overloaded Moves . | . . . Propulsion Burnouts . | . . . Robots Hopped . | . . . Cave-ins Triggered . | . . . Exploration Rate (%) 22 | 4 41 23 Regions Visited 2 Branch Regions 1 Pre-discovered Areas . | . . . Known Exits Taken 2 | 1 1 . Unknown Exits Taken . | . . . Scrap Searched . | . . . Spaces Dug . | . . . Terrain Destroyed . | . . . Melee . | . . . Projectile . | . . . AOE . | . . . Terrain Rammed . | . . . Walls Destroyed . | . . . Machines Disabled . | . . . Actions | -11 -10 -10 --------- Run | Scr Mat Min Total 388 | 54 286 48 Wait 16 | . 14 2 Move 301 | 39 220 42 Hop . | . . . Pick Up 17 | 10 7 . Fast Attach 7 | 2 4 1 Attach 8 | 3 4 1 Detach . | . . . Swap 2 | . 1 1 Drop 3 | . 2 1 Fire 34 | . 34 . Melee . | . . . Ram . | . . . Kick . | . . . Crush . | . . . Escape Stasis . | . . . Rewire . | . . . Trap . | . . . Miscellaneous . | . . . Route ------- -11/Scrapyard -10/Materials (discovered 2 exits: *Mat / *Min) -10/Mines History --------- Turn | Location | Event 28 | -11/Scrapyard | Identified exit to Materials 28 | -11/Scrapyard | Discovered exit to Materials (range 15) 73 | -11/Scrapyard | Entered Materials 73 | -10/Materials | Evolved 1 slot: Utility x1 192 | -10/Materials | Identified exit to Mines 285 | -10/Materials | Identified exit to Materials 285 | -10/Materials | Discovered exit to Materials (range 13) 312 | -10/Materials | Build established: Hacker-Mutant 544 | -10/Materials | Entered Mines 560 | -10/Mines | Assembled infested the area 565 | -10/Mines | Assisted by a Guerilla fighting off Assembled 607 | -10/Mines | Core integrity fell below 50% 613 | -10/Mines | Core integrity fell below 20% 617 | -10/Mines | Destroyed by D-53 Grenadier with Mini Grenade Launcher Last Messages --------------- 00583_ Lgt. Assault Rifle destroyed. 00583_ Acquired Bore Cannon. 00586_ K-01 Serf collects debris. 00589_ The unstable cave ceiling collapses. 00589_ as-22228 destroyed. 00589_ K-01 Serf cleans the Pulverizer. 00592_ The unstable cave ceiling collapses. 00593_ K-01 Serf collects debris. 00596_ The unstable cave ceiling collapses. 00607_ Lgt. Ion Engine destroyed. 00607_ Lgt. Treads destroyed. 00607_ Bore Cannon destroyed. 00608_ as-76523 destroyed. 00608_ as-73424 destroyed. 00610_ as-60119 destroyed. 00611_ The unstable cave ceiling collapses. 00611_ Lgt. Treads destroyed. 00614_ The unstable cave ceiling collapses. 00616_ as-48080 destroyed. 00617_ as-27739 destroyed. Map ----- +----------------------------------------------------+ | ?????????????????????????????????? #????? | | ?????????????????????????????????? #????? | | ????????????????????????????????""" """ """ #????? | | ??????????????????????????????" """ """ """ #????? | | ??????????????????????????????" """ """ """ ###??? | | ????????????????????????????""" """ """ " #??? | | ??????????????????????????? #??? | | ??????????????????????????????? #??? | | ??????????????????????????????????## #### | | ?????????????????????????????????## # # | | ??????????????????????????######## ## # | | ??????????????????????????# # ##% | | ??????????????????????????# #### | | ??????????????????????????# # # ##??? | | ?????????????????????????????# ## ##???? | | ?????????????????????????????# ###????? | | ?????????????????????????????# ##??????? | | ?????????????????????????????# ##???????? | | ?????????????????????????????### ## # ##????????? | | ?????????????????????????????### #######?????????? | | ????????????????????????###### #r ##???????????? | | ?????????????????#?????## # d < #???????????? | | ?????????????????# ???# #???????????? | | ????????????????## ### #???????????? | | ????????????????# a d #???????????? | | ????????????????# @ #???????????? | | ???????????????# a #???????????? | | ???????????????# # #???????????? | | ???????????????## ?# #???????????? | | ????????????????## ??## ##???????????? | | ?????????????????# ?????## ##????????????? | | ?????????????????#???????## ## ####?????????????? | | ??????????????????????????# #?##????????????????? | | ??????????????????????????# #???????????????????? | | ??????????????????????????# #???????????????????? | | ??????????????????????????# #???????????????????? | | ?????????????????????????? #???????????????????? | | ?????????????????????????? #???????????????????? | | ?????????????????????????#####???????????????????? | | ?????????????????????????????????????????????????? | | ?????????????????????????????????????????????????? | | ?????????????????????????????????????????????????? | | ?????????????????????????????????????????????????? | | ?????????????????????????????????????????????????? | | ?????????????????????????????????????????????????? | | ?????????????????????????????????????????????????? | | ?????????????????????????????????????????????????? | | ?????????????????????????????????????????????????? | | ?????????????????????????????????????????????????? | | ?????????????????????????????????????????????????? | +----------------------------------------------------+ Best States ------------- Heat Dissipation 25 Energy Generation 10 Energy Capacity 250 Matter Stores 300 Matter Capacity 300 Sight Range 16 Terrain Scan Density 10 Armor Coverage 150 Resistance: KI 35 Resistance: TH 35 Resistance: EX 35 Resistance: EM 35 Resistance: I 35 Resistance: S 35 Resistance: P 35 Power Shielding 33 Evasion (%) 50 Recoil Reduction 2 Offensive Hacking 20 Item Schematics ----------------- None Robot Schematics ------------------ None Fabricated ------------ Nothing Alien Tech Used ----------------- None Achievements -------------- None Challenges ------------ None Game ------ Seed ContainmentGyrokineticCloak Manual? 0 Play Time 00:08:55 Cumulative 154.1 hours Start 2020.12.28 @ 15:21:29 End 2020.12.28 @ 15:28:51 Sessions 1 Manual Loads 0 Difficulty Explorer Special Mode None Game No. 36 Rogue 1 Adventurer 0 Explorer 35 Win Type - Total 1 Types 0/0/1/0/0/0/0/0/0 Lore% 29 Gallery% 60 Achievement% 39 Wizard Run 0 Options --------- ASCII 0 Keyboard 0 Movement Mouse Keybinds 0 Fullscreen 1 Font 32/SmallcapsGlow Map View 76x50 Tactical HUD 1 Map Filters NONE Filters NONE Steam 1 RUN: f2651392-a66c-4bbf-988b-53f6daacd754